Cogmind - Beta 14 *** ADVENTURER MODE // 2024.10.05 @ 11:04:16 // Winter2019/RPGLIKE Player: DeepestRoots Result: Destroyed by AZ-8A0(R) with Subdweller Machine Gun Performance ------------- Evolutions (0) 0 Regions Visited (2) 400 Robots Destroyed (35) 175 Value Destroyed (978) 978 Prototype IDs (5) 100 Alien Tech Used (0) 0 Bonus (0) 0 TOTAL SCORE: 1653 Bonus ------- None Cogmind --------- Core Integrity 0/600 Matter 300/300 Energy 249/250 System Corruption 0% Temperature Cool (2) Movement Rolling (90) Location -10/Subcaves Parts ------- > --- POWER (1) -------- Ion Engine > --- PROPULSION (2) --- Wheel Compact Wheel > --- UTILITY (3) ------ Seismic Detector Makeshift Light Armor Plating Tractor Beam > --- WEAPON (3) ------- Subdweller Laser Battle Rifle Subdweller Machine Gun > --- INVENTORY (1) ---- Grenade Launcher Peak State ------------ > --- POWER ------------ Ion Engine > --- PROPULSION ------- Wheel Compact Wheel > --- UTILITY ---------- Seismic Detector Makeshift Light Armor Plating Tractor Beam > --- WEAPON ----------- Subdweller Laser Battle Rifle Subdweller Machine Gun > --- INVENTORY -------- Grenade Launcher [Rating: 15] Favorites ----------- Power Ion Engine Engine Ion Engine Propulsion Wheel Wheel Wheel Utility Tractor Beam Device Tractor Beam Protection Makeshift Light Armor Plating Weapon Assault Rifle Energy Gun Subdweller Laser Ballistic Gun Assault Rifle Launcher Grenade Launcher Build | -11 -10 -10 ------- Run | Yrd Mat Sub Slots Evolved 5 | 4 . 1 Power . | . . . Propulsion 1 | 1 . . Utility 2 | 1 . 1 Weapon 2 | 2 . . Parts Attached 21 | 8 7 6 Power 1 | 1 . . Engine 1 | 1 . . Core . | . . . Reactor . | . . . Propulsion 2 | 2 . . Treads . | . . . Leg . | . . . Wheel 2 | 2 . . Hover . | . . . Flight . | . . . Utility 3 | 2 . 1 Device 2 | 2 . . Storage . | . . . Processor . | . . . Hackware . | . . . Protection 1 | . . 1 Artifact . | . . . Weapon 15 | 3 7 5 Energy Gun 1 | . . 1 Energy Cannon . | . . . Ballistic Gun 12 | 3 5 4 Ballistic Cannon . | . . . Launcher 2 | . 2 . Special Weapon . | . . . Impact Weapon . | . . . Slashing Weapon . | . . . Piercing Weapon . | . . . Special Melee Weapon . | . . . Unidentified Prototypes . | . . . Parts Lost . | . . . Power . | . . . Propulsion . | . . . Utility . | . . . Weapon . | . . . Highest Loss Streak . | . . . To Critical Strikes . | . . . Average Slot Usage (%) 100 | . 100 100 Engine 11 | . 12 11 Wheel 23 | . 25 22 Device 23 | . 25 22 Protection 4 | . . 10 Energy Gun 1 | . . 2 Ballistic Gun 34 | . 36 30 Peak Build Rating 15 | 8 8 15 Average Rating 10 | 5 8 13 On Entrance 5 | . 8 8 Naked Turns . | . . . Heaviest Build 21 | 10 14 21 Greatest Support 26 | 26 26 26 Greatest Overweight (x) . | . . . Average Overweight (x) . | . . . Largest Inventory Capacity 1 | 1 1 1 Average Capacity 1 | 1 1 1 Most Carried 1 | . 1 1 Average Carried . | . . 1 Final Capacity 1 | 1 1 1 Final Carried 1 | . 1 1 Class Distribution -------------------- 95% | Hacker-Skirmisher 4% | Hacker-Mutant Dominant Class ---------------- Hacker-Skirmisher | -10/Materials Hacker-Skirmisher | -10/Subcaves Resources | -11 -10 -10 ----------- Run | Yrd Mat Sub Matter Collected 1201 | 295 301 605 Remotely 965 | 59 301 605 Salvage Created 1356 | 120 427 809 Parts 87 | 7 32 48 Haulers Intercepted 2 | . 2 . Recyclers Shooed 2 | . 2 . Parts Field Recycled . | . . . Retrieved Matter . | . . . Parts Self-Destructed 8 | . . 8 Prevented . | . . . Kills | -11 -10 -10 ------- Run | Yrd Mat Sub Combat Hostiles Destroyed 25 | . 10 15 Guns 23 | . 8 15 AOE 2 | . 2 . Classes Destroyed 7 | 2 4 1 Tunneler 2 | 1 1 . Hauler 2 | . 2 . Recycler 3 | 1 2 . Watcher 3 | . 3 . Swarmer 3 | . 3 . Grunt 7 | . 7 . Subdweller 15 | . . 15 Best Kill Streak 5 | 2 5 2 Combat Bots Only 5 | . 5 2 Max Kills in Single Turn 1 | 1 1 1 Gunslinging . | . . . Exploded 1 | . 1 . Melee . | . . . Uniques/NPCs Destroyed . | . . . Combat | -11 -10 -10 -------- Run | Yrd Mat Sub Hostile Shots Fired 102 | . 30 72 Missed 26 | . 9 17 Damage Taken 1162 | . 191 971 Core 883 | . 151 732 Absorbed by Shields . | . . . Redirected to Core 700 | . 122 578 Ignored by Resistances 329 | . 55 274 Core Remaining (%) 100 | 100 . . Volleys Fired 130 | 5 44 81 Largest 3 | 3 3 3 Hottest 115 | 60 60 115 Shots Fired 357 | 15 126 216 Gun 354 | 15 123 216 Cannon . | . . . Launcher 3 | . 3 . Special . | . . . Kinetic 343 | 15 123 205 Thermal 11 | . . 11 Explosive 3 | . 3 . Electromagnetic . | . . . Robot Hit Streak 40 | 4 30 40 Robot Miss Streak 3 | 1 3 2 Penetration Max . | . . . Secondary Targets 2 | . 1 1 Max Gunslinging Chain 1 | . 1 1 Shots Hit Robots 219 | 9 91 119 Core Hits 67 | 4 34 29 Critical Kills 1 | . 1 . Critical Parts Destroyed 1 | . . 1 Critical Strikes 2 | . 1 1 Destroy 2 | . 1 1 Melee Attacks . | . . . Impact . | . . . Slashing . | . . . Piercing . | . . . Sneak Attacks . | . . . Combat Hostiles . | . . . Follow-up Attacks . | . . . Damage Inflicted 2287 | 70 901 1316 Guns 2231 | 70 845 1316 Cannons . | . . . Explosions 56 | . 56 . Melee . | . . . Ramming . | . . . Kinetic 2093 | 70 845 1178 Thermal 138 | . . 138 Explosive 56 | . 56 . Electromagnetic . | . . . Impact . | . . . Slashing . | . . . Piercing . | . . . Highest Corruption . | . . . Average Corruption . | . . . Corruption Purged . | . . . Corruption Blocked . | . . . Overload Shots . | . . . Overflow Damage . | . . . Projectiles . | . . . Explosions . | . . . Melee . | . . . Knockbacks . | . . . Impact . | . . . Kinetic . | . . . Secondary . | . . . Self-Inflicted Damage . | . . . Shots . | . . . Rammed . | . . . Targets Rammed . | . . . Kicked . | . . . Crushed . | . . . Highest Temperature 34 | 16 34 2 Average Temperature 9 | 7 10 1 Received Heat Transfer 252 | . 123 129 Siege Activations . | . . . Robots Corrupted . | . . . Combat Hostiles . | . . . Parts Fried . | . . . Impact Corruptions . | . . . Robots Melted . | . . . Combat Hostiles . | . . . Parts Melted . | . . . Heat Transferred 175 | . . 175 Parts Sabotaged . | . . . Parts Stolen . | . . . Parts Stripped . | . . . Power Chain Reactions . | . . . Alert | -11 -10 -10 ------- Run | Yrd Mat Sub Peak Influence 203 | 10 203 . Initial 5 | . 5 . Average 75 | 3 79 . Maximum Alert Level 1 | . 1 . Low Security (%) 94 | 100 93 . Level 1 5 | . 6 . Level 2 . | . . . Level 3 . | . . . Level 4 . | . . . Level 5 . | . . . High Security . | . . . Max Security . | . . . Squads Dispatched 2 | . 2 . Investigation 2 | . 2 . Extermination . | . . . Reinforcement . | . . . Assault . | . . . Garrison . | . . . Intercept . | . . . Searches Triggered . | . . . Construction Impeded . | . . . Haulers Reinforced . | . . . Active Scanning Responses . | . . . Cargo Convoy Interrupts . | . . . Stealth | -11 -10 -10 --------- Run | Yrd Mat Sub Distress Signals 2 | . 2 . Communications Jammed . | . . . Distress Signals . | . . . Times Spotted 37 | . 20 17 Peak Tracking Total 4 | . 4 3 Tactical Retreats 3 | . 2 1 Traps | -11 -10 -10 ------- Run | Yrd Mat Sub Traps Triggered 1 | . . 1 Indirectly . | . . . Trap Hack Attempts . | . . . Triggered . | . . . Disarmed 4 | . 4 . Reprogrammed . | . . . Reused 1 | . . 1 Traps Extracted . | . . . Installed 1 | . . 1 Triggered 1 | . . 1 Machines | -11 -10 -10 ---------- Run | Yrd Mat Sub Machines Disabled . | . . . Max in Single Turn . | . . . Machines Repaired . | . . . Machines Dismantled . | . . . Machines Sabotaged . | . . . Overloaded Fab Kills . | . . . Hacking | -11 -10 -10 --------- Run | Yrd Mat Sub Machines Accessed 11 | . 9 2 Terminals 7 | . 7 . Fabricators . | . . . Repair Stations . | . . . Recycling Units 2 | . 2 . Scanalyzers . | . . . Garrison Access . | . . . Total Hacks 34 | . 28 6 Successful 29 | . 23 6 Failed 4 | . 4 . Catastrophic . | . . . Database Lockouts 1 | . 1 . Manual 16 | . 16 . Terminals 26 | . 26 . Fabricators . | . . . Repair Stations . | . . . Recycling Units 2 | . 2 . Scanalyzers . | . . . Garrison Access . | . . . Terminal Hacks 19 | . 13 6 Record 5 | . . 5 Robot Analysis 3 | . 3 . Prototype ID Bank 3 | . 3 . Open Door 1 | . . 1 Repair Station Index 1 | . 1 . Locate Traps 4 | . 4 . Disarm Traps 1 | . 1 . Hauler Manifests 1 | . 1 . Fabricator Hacks . | . . . Repair Station Hacks . | . . . Recycling Unit Hacks . | . . . Scanalyzer . | . . . Garrison Access Hacks . | . . . Unauthorized Hacks 10 | . 10 . Terminals 8 | . 8 . Botnet 3 | . 3 . Skim 5 | . 5 . Fabricators . | . . . Repair Stations . | . . . Recycling Units 2 | . 2 . Tunnel 2 | . 2 . Scanalyzers . | . . . Garrison Access . | . . . Data Cores Recovered . | . . . Used . | . . . Hacking Detections 5 | . 5 . Full Trace Events . | . . . Feedback Events . | . . . Feedback Blocked . | . . . Robot Schematics Acquired . | . . . Robots Built . | . . . Authchips . | . . . Time . | . . . Total Robot Build Rating . | . . . Part Schematics Acquired . | . . . Parts Built . | . . . Authchips . | . . . Time . | . . . Total Part Build Rating . | . . . Parts Repaired . | . . . Time . | . . . Parts Recycled . | . . . Recycled Matter . | . . . Retrieved Matter . | . . . Retrieved Components . | . . . Parts Scanalyzed . | . . . Part Schematics Acquired . | . . . Parts Damaged . | . . . Bothacking | -11 -10 -10 ------------ Run | Yrd Mat Sub Used RIF Installer . | . . . Robots Hacked . | . . . Non-combat . | . . . Combat . | . . . Robot Hacks Applied . | . . . Relay Couplers Released . | . . . Fabnet Peak Effective % . | . . . Robots Rewired . | . . . Allies Hacked . | . . . Hacks Repelled . | . . . Allies | -11 -10 -10 -------- Run | Yrd Mat Sub Total Allies . | . . . Largest Group . | . . . Highest-Rated Group . | . . . Highest-Rated Ally . | . . . Total Orders . | . . . Ally Attacks . | . . . Total Damage . | . . . Kills . | . . . Allies Corrupted . | . . . Allies Melted . | . . . Intel | -11 -10 -10 ------- Run | Yrd Mat Sub Robot Analysis Total 3 | . 3 . Derelict Logs Recovered 2 | . . 2 Drone Launches . | . . . Drone Recoveries . | . . . Exploration | -11 -10 -10 ------------- Run | Yrd Mat Sub Turns Passed 2381 | 62 1343 976 Spaces Moved 1628 | 42 887 699 Core 2 | 2 . . Treads . | . . . Legs . | . . . Wheels 1626 | 40 887 699 Hover . | . . . Flight . | . . . Fastest Speed 50 | 50 90 90 Average Speed 89 | 87 90 90 Slowest Speed 90 | 90 90 90 Overloaded Moves . | . . . Propulsion Burnouts . | . . . Robots Hopped . | . . . Cave-ins Triggered . | . . . Exploration Rate (%) 50 | 3 99 49 Regions Visited 2 Branch Regions 1 Pre-discovered Areas 5 | . 3 2 Known Exits Taken 1 | . 1 . Unknown Exits Taken 1 | 1 . . Scrap Searched 11 | . . 11 Spaces Dug . | . . . Terrain Destroyed 28 | . 28 . Melee . | . . . Projectile . | . . . AOE 28 | . 28 . Terrain Rammed . | . . . Walls Destroyed . | . . . Machines Disabled . | . . . Actions | -11 -10 -10 --------- Run | Yrd Mat Sub Total 2280 | 54 1353 873 Wait 470 | . 395 75 Move 1626 | 41 886 699 Hop . | . . . Pick Up 2 | . 2 . Fast Attach 13 | 8 . 5 Attach . | . . . Detach . | . . . Swap 8 | . 7 1 Drop 9 | . 4 5 Fire 130 | 5 44 81 Melee . | . . . Ram . | . . . Kick . | . . . Crush . | . . . Escape Stasis . | . . . Rewire . | . . . Trap 1 | . . 1 Miscellaneous 21 | . 15 6 Route ------- -11/Scrapyard -10/Materials (discovered 5 exits: *Mat x3 / *Min / *Sub) -10/Subcaves (discovered 1 exit: [*Mat]) History --------- Turn | Location | Event 1 | -11/Scrapyard | Upgraded with Propulsion slot (x1) 1 | -11/Scrapyard | Upgraded with Utility slot (x1) 1 | -11/Scrapyard | Upgraded with Weapon slot (x2) 6 | -11/Scrapyard | Discovered new exit (range 15) 63 | -11/Scrapyard | Entered Materials 203 | -10/Materials | Discovered new exit (range 7) 303 | -10/Materials | Build established: Hacker-Skirmisher 371 | -10/Materials | Discovered new exit (range 7) 377 | -10/Materials | Central database locked down 579 | -10/Materials | Discovered new exit (range 18) 727 | -10/Materials | Discovered new exit (range 7) 876 | -10/Materials | Learned location of 1 exit from Recycling 969 | -10/Materials | Identified exit to Subcaves 1000 | -10/Materials | Identified exit to Mines 1000 | -10/Materials | Identified exit to Materials 1019 | -10/Materials | Learned Storage terminal intel 1027 | -10/Materials | Learned Storage trap positions 1059 | -10/Materials | Learned location of 1 exit from Storage 1090 | -10/Materials | Learned location of Subcaves (-10) 1341 | -10/Materials | Reached level 2 1406 | -10/Materials | Entered Subcaves 1421 | -10/Subcaves | Disturbed a concealed Subdweller 1487 | -10/Subcaves | Upgraded with Utility slot (x1) 1573 | -10/Subcaves | Core integrity fell below 50% 1671 | -10/Subcaves | Discovered new exit (range 17) 1733 | -10/Subcaves | Disturbed a concealed Subdweller 1854 | -10/Subcaves | A swath of the cavern ceiling suddenly collapsed 1951 | -10/Subcaves | Shifting Twisted Machinery released Sub. Power Source 1967 | -10/Subcaves | Shifting Twisted Machinery released Sub. Power Source 2170 | -10/Subcaves | Visited Clippyterm 2172 | -10/Subcaves | Learned location of Deep Caves (-7) 2172 | -10/Subcaves | Learned Factory stockpile data 2235 | -10/Subcaves | Learned Materials terminal intel 2269 | -10/Subcaves | Core integrity fell below 20% 2382 | -10/Subcaves | Destroyed by AZ-8A0(R) with Subdweller Machine Gun Last Messages --------------- 02206_ Found 56 Matter. 02207_ Searching scrap... 02207_ Found Flamer. 02207_ Found Battle Rifle. 02207_ Found 39 Matter. 02211_ Dropped Assault Rifle. 02211_ Acquired Battle Rifle. 02212_ Acquired 10 matter. 02235_ Acquired derelict log, extracted data. Data stored: Materials terminal intel. 02265_ DI-ZFN(R) destroyed. 02266_ Acquired 5 matter. 02272_ Y9-6FP(R) destroyed. 02273_ Acquired 5 matter. 02340_ Acquired 10 matter. 02372_ Acquired 5 matter. 02374_ Sub. Machine Gun shoots sparks and powers down. 02375_ Acquired 3 matter. 02377_ E5-CLB(R) destroyed. 02378_ Acquired 3 matter. Map ----- +----------------------------------------------------+ | ????????# ##???????????# #%#" #??????????? | | ????????# #???????????##&&! #??????????? | | ????????# #???????????#|!"##" #??????????? | | ????????# ##???????????##%## #??????????? | | ????????## #????????????####### #??????????? | | ????????# #??????????????# #??????????? | | ???????### #??????????????# #??????????? | | ??????## #??????????????# #??????????? | | ??????# #??????????????# ## ##??????????? | | ??????# ##?????????????# ?## #???????????? | | ??????# ####?????????## ??## #?#####??#### | | ??????# #?????????? ?## #### ## | | ??????## #?????????## ?# ##?? ? | | ???????# ###?????####### # ####?? ? | | ???????# ## ###???##### ##"" # ## #### | | ???????# # ##?### # " " ## ?# | | ???????#### #? " " #" # # ### ## | | ????###"### #### #??? ""### ### #??# | | ????# " # ## #??## #??# ## ##??# | | ????# " ## #### #????##" ### #!##??# | | ????#" ## ##?##?#" #?#### #???# | | ????# & " ##"#?## ??# %###### | | ????## " # ### # ### #??# #??##=& [## | | ????# #######?# ####?## ##??###???#&= | | ????# ????????###?????## &#*#????????# | | ????# ??????????????????#@=&#?????????#### ###### | | ????#??????????????????###R%#????????????###????## | | ???????????????????????# %%##????????????????????# | | ??????????????????????# ##?????????????????????# | | ???????????????????? #??????????????????????# | | ????????????????? ??????????????????????? | | ??????????????? ### ### ?????????????????????? | | ??????????????#????#####???##????????????????????? | | ?????????????????????????????????????????????????? | | ?????????????????????????????????????????????????? | | ?????????????????????????????????????????????????? | | ?????????????????????????????????????????????????? | | ?????????????????????????????????????????????????? | | ?????????????????????????????????????????????????? | | ?????????????????????????????????????????????????? | | ?????????????????????????????????????????????????? | | ?????????????????????????????????????????????????? | | ?????????????????????????????????????????????????? | | ?????????????????????????????????????????????????? | | ?????????????????????????????????????????????????? | | ?????????????????????????????????????????????????? | | ?????????????????????????????????????????????????? | | ?????????????????????????????????????????????????? | | | | | +----------------------------------------------------+ Best States ------------- Heat Dissipation 31 Energy Generation 10 Energy Capacity 250 Matter Stores 300 Matter Capacity 300 Sight Range 18 Robot Scan Range 10 Terrain Scan Density 10 Armor Coverage 100 Resistance: KI 20 Resistance: TH 20 Resistance: EX 20 Resistance: EM 20 Resistance: I 20 Resistance: S 20 Resistance: P 20 Evasion (%) 42 Offensive Hacking 15 Defensive Hacking 5 Item Schematics ----------------- None Robot Schematics ------------------ None Fabricated ------------ Nothing Alien Tech Used ----------------- None Achievements -------------- None Challenges ------------ None RPGLIKE | -11 -10 -10 --------- Run | Yrd Mat Sub Levels Raised 1 | . 1 . XP Earned 6765 | 4000 1765 1000 XP Spent 4700 | 3900 . 800 Upgrades 16 | 15 . 1 Propulsion Slot 1 | 1 . . Utility Slot 2 | 1 . 1 Weapon Slot 2 | 2 . . Heat Dissipation 1 | 1 . . Inventory Capacity 1 | 1 . . Sight Range 2 | 2 . . Sensor Range 5 | 5 . . Hack Attack % 1 | 1 . . Hack Defense % 1 | 1 . . Protomatter Created 299 | . 255 44 Integrity Restored 332 | . 200 132 Core 283 | . 151 132 Parts 49 | . 49 . Protomatter Decayed 195 | . 141 54 Game ------ Seed NodeGodMatrix Manual? 0 Play Time 00:23:31 Cumulative 905.7 hours Start 2024.10.05 @ 10:41:27 End 2024.10.05 @ 11:04:16 Sessions 1 Manual Loads 0 Difficulty Adventurer Special Mode Winter2019/RPGLIKE Game No. 62 Rogue 9 Adventurer 39 Explorer 14 Win Type - Total 45 Types 22/4/10/1/1/2/0/3/2 Lore% 82 Gallery% 93 Achievement% 80 Wizard Run 0 Options --------- Layout 0 ASCII 0 Keyboard 1 Movement Numpad Keybinds 0 Fullscreen 2 Font 36/Terminus++ Map View 76x50 Zoom Use 0% Tactical HUD 1 Map Filters NONE Filters NONE Steam 0 RUN: 92245afa-2a91-4a6c-b27c-8d1cb8705991